[Event "4NCL 2nd Div 2023-24"]
[Site "Daventry"]
[Date "2024.05.04"]
[Round "9.27"]
[White "Player, Edmund C"]
[Black "Pitcher, John"]
[Result "1-0"]
[ECO "B42"]
[WhiteElo "2159"]
[BlackElo "2182"]
[Annotator "RC"]
[PlyCount "95"]
[EventDate "2023.11.11"]
[EventType "team-tourn"]
[EventCountry "ENG"]
[SourceTitle "playchess.com"]
[Source "ChessBase"]
[SourceQuality "1"]
[TimeControl "40/6000+30:3000+30"]

1. e4 {[%emt 0:00:11]} c5 {[%emt 0:00:14]} 2. Nf3 {[%emt 0:00:04]} e6 {[%emt 0:00:11]} 3. d4 {[%emt 0:00:16]} cxd4 {[%emt 0:00:08]} 4. Nxd4 {[%emt 0:00:04]} a6 {[%emt 0:00:36]} 5. Bd3 {[%emt 0:05:15]} Bc5 {[%emt 0:01:32]} 6. Nb3 {[%emt 0:00:50]} Ba7 {[%emt 0:01:16]} 7. O-O {[%emt 0:04:00]} Nc6 {[%emt 0:01:57]} 8. c4 {[%emt 0:06:21]} d6 {[%emt 0:05:23]} 9. Kh1 {[%emt 0:17:30]} Nf6 {[%emt 0:12:17]} 10. Qe2 {[%emt 0:20:36]} e5 {[%emt 0:19:49]} 11. Be3 {[%emt 0:15:42]} Be6 {[%emt 0:02:36]} 12. Bxa7 {[%emt 0:03:25]} Rxa7 {[%emt 0:01:20]} 13. Nc3 {[%emt 0:00:11]} O-O {[%emt 0:01:10]} 14. Rad1 {[%emt 0:04:20]} Qc7 {[%emt 0:10:44]} 15. Rd2 {[%emt 0:03:56]} Raa8 {[%emt 0:00:56]} 16. Nd5 {[%emt 0:08:44]} Bxd5 {[%emt 0:03:50]} 17. exd5 {[%emt 0:00:34]} Nb8 {[%emt 0:02:42]} 18. f4 {[%emt 0:04:42]} Nbd7 {[%emt 0:05:23]} 19. fxe5 {[%emt 0:10:24]} dxe5 {[%emt 0:00:10]} 20. d6 {[%emt 0:01:38]} Qc6 {[%emt 0:02:24]} 21. c5 {[%emt 0:01:39]} Rfe8 {[%emt 0:03:54]} 22. Bf5 {[%emt 0:00:30]} e4 {[%emt 0:06:45]} 23. Bxd7 {[%emt 0:00:12]} Nxd7 {[%emt 0:00:34]} 24. Qc4 {[%emt 0:00:25]} Ne5 {[%emt 0:06:09]} 25. Qd5 {[%emt 0:00:29]} Qb5 {[%emt 0:00:11]} 26. Re1 {[%emt 0:00:43]} Nd3 {[%emt 0:09:10]} 27. Ree2 {[%emt 0:00:45]} Nf4 {[%emt 0:02:03]} 28. Nd4 {[%emt 0:00:03]} Qd7 {[%emt 0:05:37]} 29. Qg5 {[%emt 0:00:52]} Nxe2 {[%emt 0:00:15]} 30. Rxe2 {[%emt 0:00:25]} h6 {[%emt 0:00:32]} 31. Qd5 {[%emt 0:00:18]} Qg4 {[%emt 0:03:08]} 32. Re1 {[%emt 0:00:01]} e3 {[%emt 0:00:34]} 33. d7 {[%emt 0:00:53]} Red8 {[%emt 0:01:08]} 34. Nf5 {[%emt 0:00:02]} Kh7 {[%emt 0:00:53]} 35. Rxe3 {[%emt 0:00:42]} Qf4 {[%emt 0:00:26]} 36. Kg1 {[%emt 0:01:08]} Rf8 {[%emt 0:00:57]} 37. g3 {[%emt 0:00:32]} Qg5 {[%emt 0:00:36]} 38. h4 {[%emt 0:00:24]} Qf6 {[%emt 0:00:25]} 39. Nd6 {[%emt 0:00:37]} Qxb2 {[%emt 0:01:30]} 40. Nxb7 {[%emt 0:00:25]} Rab8 {[%emt 0:00:25]} 41. c6 {[%emt 0:08:02]} Qb6 {[%emt 0:00:26]} 42. Qc5 {[%emt 0:05:22]} Qb1+ {[%emt 0:01:04]} 43. Kf2 {[%emt 0:06:13]} f5 {[%emt 0:01:20]} 44. Re1 {[%emt 0:03:53]} Qxa2+ {[%emt 0:02:55]} 45. Re2 {[%emt 0:00:04]} Qf7 {[%emt 0:02:09]} 46. Nd6 {[%emt 0:02:43]} Qf6 {[%emt 0:00:26]} 47. c7 {[%emt 0:00:59]} f4 {[%emt 0:00:20]} 48. Qf5+ {[%emt 0:01:53]} 1-0

[Event "4NCL 2nd Div 2023-24"]
[Site "Daventry"]
[Date "2024.05.04"]
[Round "9.28"]
[White "Valdepenas Octavio, Javier"]
[Black "Walker, Martin G"]
[Result "0-1"]
[ECO "C83"]
[WhiteElo "2182"]
[BlackElo "2033"]
[Annotator "NA RC"]
[PlyCount "60"]
[EventDate "2023.11.11"]
[EventType "team-tourn"]
[EventCountry "ENG"]
[SourceTitle "playchess.com"]
[Source "ChessBase"]
[SourceQuality "1"]
[TimeControl "40/6000+30:3000+30"]

1. e4 {[%emt 0:00:07]} e5 {[%emt 0:00:04]} 2. Nf3 {[%emt 0:00:05]} Nc6 {[%emt 0:00:04]} 3. Bb5 {[%emt 0:00:12]} a6 {[%emt 0:00:06]} 4. Ba4 {[%emt 0:00:05]} Nf6 {[%emt 0:00:06]} 5. O-O {[%emt 0:00:18]} Nxe4 {[%emt 0:00:04]} 6. d4 {[%emt 0:00:13]} b5 {[%emt 0:00:05]} 7. Bb3 {[%emt 0:00:05]} d5 {[%emt 0:00:05]} 8. dxe5 {[%emt 0:00:04]} Be6 {[%emt 0:00:04]} 9. Be3 {[%emt 0:00:25]} Be7 {[%emt 0:00:07]} 10. c3 {[%emt 0:02:19]} O-O {[%emt 0:01:27]} 11. Nbd2 {[%emt 0:09:35]} Bg4 {[%emt 0:11:10]} 12. Nxe4 {[%emt 0:07:08]} dxe4 {[%emt 0:00:05]} 13. Qd5 {[%emt 0:01:59]} Qxd5 {[%emt 0:14:30]} 14. Bxd5 {[%emt 0:00:11]} exf3 {[%emt 0:00:05]} 15. Bxc6 {[%emt 0:00:56]} fxg2 {[%emt 0:00:05]} 16. Kxg2 {[%emt 0:01:30]} Rad8 {[%emt 0:00:05]} 17. Kg3 {[%emt 0:47:40]} Be6 {[%emt 0:01:05]} 18. Rfd1 {[%emt 0:03:07]} f6 {[%emt 0:21:00]} 19. Bd4 {[%emt 0:02:34]} Kf7 {[%emt 0:19:31]} 20. f4 {[%emt 0:03:23]} Bd5 {[%emt 0:05:07]} 21. Bxd5+ {[%emt 0:00:38]} Rxd5 {[%emt 0:00:07]} 22. exf6 {[%emt 0:02:06]} gxf6 {[%emt 0:00:08]} 23. Bg1 {[%emt 0:05:17]} Rg8+ {[%emt 0:07:57]} 24. Kf3 {[%emt 0:00:58]} Rh5 {[%emt 0:00:30]} 25. Rd7 {[%emt 0:09:13]} Rh3+ {[%emt 0:00:24]} 26. Kf2 {[%emt 0:00:24]} Ke8 {[%emt 0:09:07]} 27. Rxc7 {[%emt 0:08:26]} Kd8 {[%emt 0:00:06]} 28. Rc6 {[%emt 0:01:05]} Kd7 {[%emt 0:00:05]} 29. Rxa6 {[%emt 0:00:09]} Bc5+ {[%emt 0:00:10]} 30. Ke2 {[%emt 0:00:09]} Rg2+ {[%emt 0:00:06]} 0-1

[Event "4NCL 2nd Div 2023-24"]
[Site "Daventry"]
[Date "2024.05.04"]
[Round "9.29"]
[White "Samarakoon, Vivash Ransara"]
[Black "Mason, Donald J"]
[Result "1/2-1/2"]
[ECO "C80"]
[WhiteElo "1980"]
[BlackElo "1984"]
[Annotator "NA RC"]
[PlyCount "83"]
[EventDate "2023.11.11"]
[EventType "team-tourn"]
[EventCountry "ENG"]
[SourceTitle "playchess.com"]
[Source "ChessBase"]
[SourceQuality "1"]
[TimeControl "40/6000+30:3000+30"]

1. e4 {[%emt 0:00:03]} e5 {[%emt 0:00:10]} 2. Nf3 {[%emt 0:00:08]} Nc6 {[%emt 0:00:08]} 3. Bb5 {[%emt 0:00:05]} a6 {[%emt 0:00:11]} 4. Ba4 {[%emt 0:00:03]} Nf6 {[%emt 0:00:14]} 5. O-O {[%emt 0:00:05]} Nxe4 {[%emt 0:00:33]} 6. d4 {[%emt 0:00:20]} b5 {[%emt 0:00:39]} 7. Bb3 {[%emt 0:00:04]} d5 {[%emt 0:00:07]} 8. dxe5 {[%emt 0:00:44]} Be6 {[%emt 0:00:10]} 9. Nbd2 {[%emt 0:04:05]} Nc5 {[%emt 0:04:40]} 10. c3 {[%emt 0:00:19]} d4 {[%emt 0:01:23]} 11. Bxe6 {[%emt 0:00:11]} Nxe6 {[%emt 0:01:58]} 12. cxd4 {[%emt 0:01:45]} Ncxd4 {[%emt 0:00:49]} 13. Nxd4 {[%emt 0:01:29]} Qxd4 {[%emt 0:04:04]} 14. Qf3 {[%emt 0:10:03]} Rd8 {[%emt 0:02:55]} 15. Qc6+ {[%emt 0:27:14]} Qd7 {[%emt 0:01:45]} 16. Qxd7+ {[%emt 0:01:22]} Rxd7 {[%emt 0:06:11]} 17. Ne4 {[%emt 0:07:49]} Be7 {[%emt 0:04:06]} 18. Be3 {[%emt 0:01:47]} Rd5 {[%emt 0:05:22]} 19. f4 {[%emt 0:11:43]} O-O {[%emt 0:04:14]} 20. Rad1 {[%emt 0:08:14]} Rfd8 {[%emt 0:04:20]} 21. Rxd5 {[%emt 0:05:04]} Rxd5 {[%emt 0:00:55]} 22. Kf2 {[%emt 0:02:08]} c5 {[%emt 0:09:23]} 23. Nc3 {[%emt 0:05:12]} Rd3 {[%emt 0:04:28]} 24. Rd1 {[%emt 0:05:26]} Rxd1 {[%emt 0:09:10]} 25. Nxd1 {[%emt 0:00:05]} f5 {[%emt 0:00:08]} 26. Nc3 {[%emt 0:12:19]} Nc7 {[%emt 0:04:52]} 27. b3 {[%emt 0:01:17]} Kf7 {[%emt 0:01:37]} 28. Ke2 {[%emt 0:00:45]} Ke6 {[%emt 0:02:08]} 29. Kd3 {[%emt 0:00:34]} h6 {[%emt 0:05:04]} 30. g3 {[%emt 0:01:42]} g5 {[%emt 0:00:08]} 31. Ne2 {[%emt 0:01:05]} Nd5 {[%emt 0:04:28]} 32. Bd2 {[%emt 0:00:01]} g4 {[%emt 0:14:11]} 33. a3 {[%emt 0:00:43]} Bd8 {[%emt 0:02:57]} 34. Be1 {[%emt 0:01:55]} Bb6 {[%emt 0:00:32]} 35. Bd2 {[%emt 0:00:05]} h5 {[%emt 0:00:59]} 36. Be1 {[%emt 0:00:13]} c4+ {[%emt 0:03:17]} 37. bxc4 {[%emt 0:00:02]} bxc4+ {[%emt 0:00:07]} 38. Kxc4 {[%emt 0:00:03]} Ne3+ {[%emt 0:00:12]} 39. Kd3 {[%emt 0:00:13]} Nf1 {[%emt 0:02:57]} 40. Bc3 {[%emt 0:03:28]} Nxh2 {[%emt 0:01:41]} 41. Bd4 {[%emt 0:50:32]} Ba5 {[%emt 0:14:18]} 42. Bc3 {[%emt 0:00:00]} 1/2-1/2

[Event "4NCL 2nd Div 2023-24"]
[Site "Daventry"]
[Date "2024.05.04"]
[Round "9.30"]
[White "Shephard, Chris C W"]
[Black "Talsma, Paul"]
[Result "1/2-1/2"]
[ECO "A21"]
[WhiteElo "2155"]
[BlackElo "2073"]
[Annotator "NA"]
[PlyCount "34"]
[EventDate "2023.11.11"]
[EventType "team-tourn"]
[EventCountry "ENG"]
[SourceTitle "playchess.com"]
[Source "ChessBase"]
[SourceQuality "1"]
[TimeControl "40/6000+30:3000+30"]

1. c4 {[%emt 0:00:05]} e5 {[%emt 0:00:17]} 2. Nc3 {[%emt 0:00:41]} Bb4 {[%emt 0:00:12]} 3. e4 {[%emt 0:05:14]} Bxc3 {[%emt 0:02:46]} 4. bxc3 {[%emt 0:01:50]} d6 {[%emt 0:00:27]} 5. d3 {[%emt 0:07:17]} Ne7 {[%emt 0:01:00]} 6. g3 {[%emt 0:09:31]} O-O {[%emt 0:01:55]} 7. Bg2 {[%emt 0:00:22]} c5 {[%emt 0:00:53]} 8. Nf3 {[%emt 0:03:50]} Nbc6 {[%emt 0:00:39]} 9. O-O {[%emt 0:00:09]} h6 {[%emt 0:01:03]} 10. Ne1 {[%emt 0:00:47]} Be6 {[%emt 0:01:42]} 11. Nc2 {[%emt 0:02:30]} Qd7 {[%emt 0:02:24]} 12. Ne3 {[%emt 0:05:16]} Bh3 {[%emt 0:29:22]} 13. Nd5 {[%emt 0:16:19]} Bxg2 {[%emt 0:01:27]} 14. Kxg2 {[%emt 0:01:24]} f5 {[%emt 0:00:52]} 15. f3 {[%emt 0:11:24]} Rf7 {[%emt 0:02:11]} 16. Qe2 {[%emt 0:03:24]} Raf8 {[%emt 0:00:39]} 17. Bd2 {[%emt 0:08:56]} b6 {[%emt 0:03:10]} 1/2-1/2

[Event "4NCL 2nd Div 2023-24"]
[Site "Daventry"]
[Date "2024.05.04"]
[Round "9.31"]
[White "Myall, Ivan J"]
[Black "Fallowfield, Jeremy R"]
[Result "1/2-1/2"]
[ECO "C24"]
[WhiteElo "1932"]
[BlackElo "2108"]
[Annotator "NA RC"]
[PlyCount "101"]
[EventDate "2023.11.11"]
[EventType "team-tourn"]
[EventCountry "ENG"]
[SourceTitle "playchess.com"]
[Source "ChessBase"]
[SourceQuality "1"]
[TimeControl "40/6000+30:3000+30"]

1. e4 {[%emt 0:00:03]} e5 {[%emt 0:01:00]} 2. Bc4 {[%emt 0:00:40]} Nf6 {[%emt 0:00:14]} 3. d3 {[%emt 0:00:34]} Bc5 {[%emt 0:00:29]} 4. Nf3 {[%emt 0:00:15]} d6 {[%emt 0:00:29]} 5. c3 {[%emt 0:00:35]} O-O {[%emt 0:06:57]} 6. Bg5 {[%emt 0:01:09]} Nbd7 {[%emt 0:02:29]} 7. Nbd2 {[%emt 0:02:56]} Re8 {[%emt 0:11:27]} 8. a4 {[%emt 0:02:23]} a5 {[%emt 0:00:45]} 9. O-O {[%emt 0:00:21]} h6 {[%emt 0:01:57]} 10. Be3 {[%emt 0:02:48]} Bxe3 {[%emt 0:11:28]} 11. fxe3 {[%emt 0:00:06]} Nf8 {[%emt 0:00:15]} 12. Qe1 {[%emt 0:09:19]} Be6 {[%emt 0:04:00]} 13. Nh4 {[%emt 0:09:07]} Bxc4 {[%emt 0:15:08]} 14. Nxc4 {[%emt 0:01:10]} d5 {[%emt 0:00:30]} 15. exd5 {[%emt 0:11:44]} Qxd5 {[%emt 0:07:27]} 16. Rd1 {[%emt 0:06:06]} e4 {[%emt 0:02:42]} 17. Rf5 {[%emt 0:02:46]} Qe6 {[%emt 0:03:15]} 18. Re5 {[%emt 0:03:12]} Qc6 {[%emt 0:01:36]} 19. b3 {[%emt 0:10:13]} exd3 {[%emt 0:07:47]} 20. Rxe8 {[%emt 0:01:16]} Rxe8 {[%emt 0:00:59]} 21. Rxd3 {[%emt 0:00:48]} b6 {[%emt 0:01:44]} 22. Nf3 {[%emt 0:04:51]} N8d7 {[%emt 0:02:47]} 23. Qd1 {[%emt 0:02:30]} Nc5 {[%emt 0:03:01]} 24. Rd8 {[%emt 0:03:48]} Nfe4 {[%emt 0:04:25]} 25. Nfe5 {[%emt 0:17:45]} Qe6 {[%emt 0:00:13]} 26. Rxe8+ {[%emt 0:01:50]} Qxe8 {[%emt 0:00:02]} 27. Qc2 {[%emt 0:00:20]} f6 {[%emt 0:07:23]} 28. Nd3 {[%emt 0:00:41]} Qe6 {[%emt 0:07:36]} 29. Nxc5 {[%emt 0:01:19]} Nxc5 {[%emt 0:00:01]} 30. Qd1 {[%emt 0:02:57]} Qe7 {[%emt 0:04:08]} 31. Qd5+ {[%emt 0:01:32]} Kf8 {[%emt 0:00:43]} 32. Qa8+ {[%emt 0:00:49]} Kf7 {[%emt 0:00:04]} 33. Qd5+ {[%emt 0:00:03]} Kf8 {[%emt 0:00:06]} 34. Qa8+ {[%emt 0:00:13]} Kf7 {[%emt 0:00:35]} 35. Qd5+ {[%emt 0:00:12]} Qe6 {[%emt 0:00:11]} 36. Qxe6+ {[%emt 0:00:38]} Kxe6 {[%emt 0:00:02]} 37. Nd2 {[%emt 0:00:08]} Kd5 {[%emt 0:01:32]} 38. Kf2 {[%emt 0:02:20]} Ne4+ {[%emt 0:01:07]} 39. Nxe4 {[%emt 0:00:08]} Kxe4 {[%emt 0:00:02]} 40. Ke2 {[%emt 0:00:05]} f5 {[%emt 0:00:28]} 41. Kd2 {[%emt 0:53:27]} g5 {[%emt 0:52:17]} 42. Ke2 {[%emt 0:01:06]} c6 {[%emt 0:00:00]} 43. Kd2 {[%emt 0:00:00]} g4 {[%emt 0:00:00]} 44. c4 {[%emt 0:00:00]} h5 {[%emt 0:00:00]} 45. Ke2 {[%emt 0:00:00]} h4 {[%emt 0:00:00]} 46. Kd2 {[%emt 0:00:00]} h3 {[%emt 0:00:00]} 47. gxh3 {[%emt 0:00:00]} gxh3 {[%emt 0:00:00]} 48. Ke2 {[%emt 0:00:00]} c5 {[%emt 0:00:00]} 49. Kf2 {[%emt 0:00:00]} f4 {[%emt 0:00:00]} 50. exf4 {[%emt 0:00:00]} Kxf4 {[%emt 0:00:00]} 51. Ke2 {[%emt 0:00:00]} 1/2-1/2

[Event "4NCL 2nd Div 2023-24"]
[Site "Daventry"]
[Date "2024.05.04"]
[Round "9.32"]
[White "Dicen, Elis Denele"]
[Black "Korchagina, Polina"]
[Result "1-0"]
[ECO "E21"]
[WhiteElo "1919"]
[BlackElo "1545"]
[Annotator "NA RC"]
[PlyCount "43"]
[EventDate "2023.11.11"]
[EventType "team-tourn"]
[EventCountry "ENG"]
[SourceTitle "playchess.com"]
[Source "ChessBase"]
[SourceQuality "1"]
[TimeControl "40/6000+30:3000+30"]

1. d4 {[%emt 0:00:03]} Nf6 {[%emt 0:00:07]} 2. c4 {[%emt 0:00:06]} e6 {[%emt 0:00:17]} 3. Nc3 {[%emt 0:00:29]} Bb4 {[%emt 0:00:26]} 4. e3 {[%emt 0:00:54]} O-O {[%emt 0:00:48]} 5. Bd2 {[%emt 0:00:28]} b6 {[%emt 0:05:06]} 6. Nf3 {[%emt 0:00:19]} Bb7 {[%emt 0:00:45]} 7. Bd3 {[%emt 0:01:04]} Re8 {[%emt 0:05:36]} 8. O-O {[%emt 0:02:23]} d5 {[%emt 0:02:21]} 9. cxd5 {[%emt 0:03:35]} Nxd5 {[%emt 0:11:04]} 10. e4 {[%emt 0:07:26]} Nxc3 {[%emt 0:03:46]} 11. bxc3 {[%emt 0:00:18]} Be7 {[%emt 0:00:18]} 12. Re1 {[%emt 0:06:25]} c5 {[%emt 0:01:36]} 13. Be3 {[%emt 0:04:31]} Qc7 {[%emt 0:03:15]} 14. Qe2 {[%emt 0:03:50]} c4 {[%emt 0:08:31]} 15. Bc2 {[%emt 0:06:41]} b5 {[%emt 0:01:33]} 16. a4 {[%emt 0:06:32]} a6 {[%emt 0:00:31]} 17. Reb1 {[%emt 0:00:37]} bxa4 {[%emt 0:20:09]} 18. Rxa4 {[%emt 0:01:33]} Bc6 {[%emt 0:11:42]} 19. Qxc4 {[%emt 0:10:24]} Rc8 {[%emt 0:03:25]} 20. Raa1 {[%emt 0:02:45]} Qd8 {[%emt 0:03:07]} 21. Qe2 {[%emt 0:00:29]} Bb5 {[%emt 0:10:48]} 22. Rxb5 {[%emt 0:01:37]} 1-0

[Event "4NCL 2nd Div 2023-24"]
[Site "Daventry"]
[Date "2024.05.05"]
[Round "10.1"]
[White "Southcott-Moyers, Indy"]
[Black "Delaney, Killian"]
[Result "0-1"]
[ECO "D20"]
[WhiteElo "2160"]
[BlackElo "2271"]
[Annotator "RC"]
[PlyCount "116"]
[EventDate "2023.11.11"]
[EventType "team-tourn"]
[EventCountry "ENG"]
[SourceTitle "playchess.com"]
[Source "ChessBase"]
[SourceQuality "1"]
[TimeControl "40/6000+30:3000+30"]

1. d4 {[%emt 0:00:03]} d5 {[%emt 0:03:12]} 2. c4 {[%emt 0:01:29]} dxc4 {[%emt 0:00:22]} 3. e4 {[%emt 0:03:11]} b5 {[%emt 0:00:14]} 4. a4 {[%emt 0:02:11]} c6 {[%emt 0:00:09]} 5. axb5 {[%emt 0:01:53]} cxb5 {[%emt 0:00:09]} 6. Nc3 {[%emt 0:00:19]} a6 {[%emt 0:00:09]} 7. Nxb5 {[%emt 0:13:05]} axb5 {[%emt 0:00:09]} 8. Rxa8 {[%emt 0:00:06]} Bb7 {[%emt 0:00:06]} 9. Ra1 {[%emt 0:00:42]} e6 {[%emt 0:00:10]} 10. Nf3 {[%emt 0:04:10]} Nf6 {[%emt 0:00:43]} 11. Be2 {[%emt 0:02:26]} Nxe4 {[%emt 0:01:52]} 12. O-O {[%emt 0:00:15]} Nc6 {[%emt 0:21:00]} 13. Be3 {[%emt 0:16:57]} Qd5 {[%emt 0:01:13]} 14. Rb1 {[%emt 0:19:43]} Na5 {[%emt 0:21:05]} 15. Ra1 {[%emt 0:02:46]} Nb3 {[%emt 0:01:14]} 16. Ra7 {[%emt 0:00:56]} Bd6 {[%emt 0:00:12]} 17. Qc2 {[%emt 0:04:27]} Bb8 {[%emt 0:01:16]} 18. Rxb7 {[%emt 0:01:49]} Qxb7 {[%emt 0:03:55]} 19. Ne5 {[%emt 0:02:59]} O-O {[%emt 0:07:31]} 20. Bf3 {[%emt 0:02:02]} f5 {[%emt 0:00:05]} 21. Rd1 {[%emt 0:02:05]} Qd5 {[%emt 0:04:45]} 22. g3 {[%emt 0:09:14]} Rd8 {[%emt 0:01:17]} 23. Be2 {[%emt 0:08:49]} Rc8 {[%emt 0:01:49]} 24. Bf3 {[%emt 0:03:10]} Ba7 {[%emt 0:00:28]} 25. Nd3 {[%emt 0:03:59]} Nxd4 {[%emt 0:00:46]} 26. Bxd4 {[%emt 0:01:31]} Qxd4 {[%emt 0:03:00]} 27. Nf4 {[%emt 0:00:26]} Qxf2+ {[%emt 0:02:50]} 28. Qxf2 {[%emt 0:00:07]} Bxf2+ {[%emt 0:01:49]} 29. Kg2 {[%emt 0:00:25]} Be3 {[%emt 0:00:20]} 30. Nxe6 {[%emt 0:01:05]} b4 {[%emt 0:00:06]} 31. Bxe4 {[%emt 0:02:51]} fxe4 {[%emt 0:00:06]} 32. Re1 {[%emt 0:00:18]} Bd2 {[%emt 0:00:27]} 33. Rxe4 {[%emt 0:00:08]} c3 {[%emt 0:00:06]} 34. bxc3 {[%emt 0:00:15]} bxc3 {[%emt 0:00:04]} 35. Nd4 {[%emt 0:00:24]} c2 {[%emt 0:00:11]} 36. Nxc2 {[%emt 0:00:28]} Rxc2 {[%emt 0:00:03]} 37. Kf3 {[%emt 0:00:19]} Bg5 {[%emt 0:01:34]} 38. h4 {[%emt 0:00:09]} Bf6 {[%emt 0:00:05]} 39. h5 {[%emt 0:00:08]} Rc3+ {[%emt 0:01:08]} 40. Kg2 {[%emt 0:00:04]} Kf7 {[%emt 0:00:16]} 41. g4 {[%emt 0:50:35]} Rd3 {[%emt 0:50:21]} 42. Ra4 {[%emt 0:00:09]} Be5 {[%emt 0:00:44]} 43. Ra7+ {[%emt 0:00:00]} Kf6 {[%emt 0:00:00]} 44. h6 {[%emt 0:00:00]} g5 {[%emt 0:00:00]} 45. Rxh7 {[%emt 0:00:00]} Rg3+ {[%emt 0:00:00]} 46. Kf2 {[%emt 0:00:00]} Rxg4 {[%emt 0:00:00]} 47. Rb7 {[%emt 0:00:00]} Rh4 {[%emt 0:00:00]} 48. Rb6+ {[%emt 0:00:00]} Kf5 {[%emt 0:00:00]} 49. Kg2 {[%emt 0:00:00]} Bf6 {[%emt 0:00:00]} 50. Ra6 {[%emt 0:00:00]} Rxh6 {[%emt 0:00:00]} 51. Kf3 {[%emt 0:00:00]} Rh3+ {[%emt 0:00:00]} 52. Kg2 {[%emt 0:00:00]} Rb3 {[%emt 0:00:00]} 53. Ra4 {[%emt 0:00:00]} Be5 {[%emt 0:00:00]} 54. Ra5 {[%emt 0:00:00]} Rb2+ {[%emt 0:00:00]} 55. Kg1 {[%emt 0:00:00]} g4 {[%emt 0:00:00]} 56. Ra4 {[%emt 0:00:00]} g3 {[%emt 0:00:00]} 57. Rc4 {[%emt 0:00:00]} Bf4 {[%emt 0:00:00]} 58. Rc5+ {[%emt 0:00:00]} Kg4 {[%emt 0:00:00]} 0-1

[Event "4NCL 2nd Div 2023-24"]
[Site "Daventry"]
[Date "2024.05.05"]
[Round "10.2"]
[White "Thorarinsson, Pall A."]
[Black "Jones, Steven A"]
[Result "1-0"]
[ECO "A16"]
[WhiteElo "2160"]
[BlackElo "2202"]
[Annotator "RC"]
[PlyCount "96"]
[EventDate "2023.11.11"]
[EventType "team-tourn"]
[EventCountry "ENG"]
[SourceTitle "playchess.com"]
[Source "ChessBase"]
[SourceQuality "1"]
[TimeControl "40/6000+30:3000+30"]

1. Nf3 {[%emt 0:07:02]} Nf6 {[%emt 0:00:44]} 2. c4 {[%emt 0:00:37]} g6 {[%emt 0:00:53]} 3. Nc3 {[%emt 0:01:03]} d5 {[%emt 0:00:30]} 4. cxd5 {[%emt 0:00:44]} Nxd5 {[%emt 0:00:05]} 5. h4 {[%emt 0:01:27]} Bg7 {[%emt 0:00:37]} 6. e4 {[%emt 0:00:39]} Nxc3 {[%emt 0:00:29]} 7. dxc3 {[%emt 0:00:17]} Qxd1+ {[%emt 0:00:09]} 8. Kxd1 {[%emt 0:00:06]} Nd7 {[%emt 0:00:20]} 9. h5 {[%emt 0:00:45]} Nf6 {[%emt 0:12:11]} 10. h6 {[%emt 0:01:35]} Bf8 {[%emt 0:00:05]} 11. e5 {[%emt 0:05:04]} Ng4 {[%emt 0:03:03]} 12. Ke1 {[%emt 0:00:52]} Bd7 {[%emt 0:02:13]} 13. Bf4 {[%emt 0:01:58]} f6 {[%emt 0:06:05]} 14. exf6 {[%emt 0:11:10]} exf6 {[%emt 0:00:46]} 15. Bxc7 {[%emt 0:02:01]} Bxh6 {[%emt 0:00:41]} 16. Be2 {[%emt 0:02:11]} O-O {[%emt 0:02:04]} 17. Rd1 {[%emt 0:02:44]} Bc8 {[%emt 0:03:15]} 18. Nd4 {[%emt 0:18:39]} Kg7 {[%emt 0:01:28]} 19. Rh4 {[%emt 0:11:42]} Ne5 {[%emt 0:03:18]} 20. f4 {[%emt 0:00:55]} Nc6 {[%emt 0:01:19]} 21. Nxc6 {[%emt 0:05:55]} bxc6 {[%emt 0:00:20]} 22. Bf3 {[%emt 0:00:19]} g5 {[%emt 0:04:37]} 23. fxg5 {[%emt 0:12:06]} Bxg5 {[%emt 0:00:20]} 24. Ra4 {[%emt 0:07:13]} Bf5 {[%emt 0:01:15]} 25. Bf4 {[%emt 0:05:26]} Bc2 {[%emt 0:04:45]} 26. Rd7+ {[%emt 0:00:08]} Kg6 {[%emt 0:00:17]} 27. Rc4 {[%emt 0:03:00]} Bf5 {[%emt 0:01:27]} 28. Rd2 {[%emt 0:01:32]} Rae8+ {[%emt 0:01:48]} 29. Kf2 {[%emt 0:00:17]} Be6 {[%emt 0:00:43]} 30. Ra4 {[%emt 0:00:32]} Bxf4 {[%emt 0:00:20]} 31. Rxf4 {[%emt 0:00:01]} Bxa2 {[%emt 0:00:23]} 32. Bxc6 {[%emt 0:00:37]} Rd8 {[%emt 0:01:48]} 33. Rg4+ {[%emt 0:00:57]} Kf5 {[%emt 0:01:51]} 34. Rgd4 {[%emt 0:00:22]} Rxd4 {[%emt 0:00:17]} 35. Rxd4 {[%emt 0:00:00]} Rb8 {[%emt 0:01:54]} 36. b4 {[%emt 0:00:48]} Be6 {[%emt 0:03:28]} 37. b5 {[%emt 0:03:39]} Ke5 {[%emt 0:00:51]} 38. Re4+ {[%emt 0:00:31]} Kd6 {[%emt 0:00:17]} 39. Ra4 {[%emt 0:00:01]} Kc5 {[%emt 0:01:03]} 40. Rxa7 {[%emt 0:01:14]} Bd5 {[%emt 0:02:40]} 41. Rxh7 {[%emt 0:52:18]} Bxc6 {[%emt 0:51:20]} 42. bxc6 {[%emt 0:00:02]} Rb6 {[%emt 0:01:35]} 43. c7 {[%emt 0:02:26]} Rc6 {[%emt 0:00:08]} 44. Ke3 {[%emt 0:00:26]} Kd5 {[%emt 0:00:08]} 45. Kd3 {[%emt 0:00:17]} Ke5 {[%emt 0:00:33]} 46. c4 {[%emt 0:00:42]} f5 {[%emt 0:00:19]} 47. Kc3 {[%emt 0:00:18]} f4 {[%emt 0:00:27]} 48. Kb4 {[%emt 0:01:52]} Kd4 {[%emt 0:04:22]} 1-0